bitfinex/quotes_ETHUSD_20250603
["timestamp","ask_amount","ask_price","bid_price","bid_amount"]
[1748948417289,3.82966466,2611.2,2610.8,2.90160837]
[1748948417927,3.82966466,2611.2,2610.8,6.7318408]
[1748948418225,0.926,2611.8,2611.1,8.0]
[1748948418430,3.82921877,2611.5,2611.2,2.90160837]
[1748948418631,3.82921877,2611.5,2611.1,8.0]
[1748948419319,3.82921692,2611.5,2611.1,8.0]
[1748948419495,3.82892368,2611.7,2611.1,8.0]
[1748948419697,3.82929425,2611.5,2611.1,8.0]
[1748948420013,3.82936631,2611.4,2611.1,8.0]
[1748948420190,3.82936631,2611.4,2611.1,0.55]
[1748948420191,3.82937269,2611.4,2611.1,0.55]
[1748948420988,3.82937269,2611.4,2611.0,8.0]
[1748948421210,3.82929989,2611.5,2611.0,14.7315538]
[1748948421998,3.82936481,2611.4,2611.0,14.73155114]
[1748948422425,3.82930272,2611.5,2611.0,14.73155114]
[1748948422830,3.82936742,2611.4,2611.0,14.73155114]
[1748948423155,3.82936742,2611.4,2611.0,10.90160837]
[1748948423353,3.8296068,2611.3,2611.0,10.90160837]
[1748948423637,3.8296068,2611.3,2610.9,8.0]
[1748948424239,3.8296068,2611.3,2610.9,11.83008485]
[1748948424415,3.8296068,2611.3,2610.9,8.0]
[1748948424614,3.8295102,2611.3,2610.9,8.0]
[1748948424924,3.874,2611.2,2610.7,0.56540452]
[1748948425098,3.8302436,2610.8,2610.1,3.48209605]
[1748948425297,3.83091615,2610.4,2610.1,0.38110689]
[1748948425624,3.83093399,2610.4,2610.0,2.90160837]
[1748948425821,3.83076688,2610.5,2610.2,2.90160837]
[1748948426025,7.70461008,2610.6,2610.2,2.90160837]
[1748948426333,7.70462092,2610.6,2610.2,2.90160837]
[1748948426539,7.70460251,2610.6,2610.2,2.90160837]
[1748948426710,3.83069652,2610.5,2610.2,2.90160837]
[1748948430428,7.70458981,2610.6,2610.3,8.0]
[1748948430621,3.83070564,2610.5,2610.3,8.0]
[1748948431133,3.875,2610.6,2610.3,8.0]
[1748948431335,3.83069089,2610.5,2610.4,10.90160837]
[1748948432548,7.70558578,2610.6,2610.5,8.0]
[1748948433344,7.70558578,2610.6,2610.4,2.90160837]
[1748948434515,0.9211,2610.7,2610.4,2.90160837]
[1748948434516,3.83045761,2610.7,2610.4,2.90160837]
[1748948434729,7.70545761,2610.7,2610.5,8.0]
[1748948435335,3.83053704,2610.6,2610.5,8.0]
[1748948437275,4.98413223,2610.6,2610.5,8.0]
[1748948439633,3.83068377,2610.5,2610.4,2.51325711]
[1748948439838,4.98419821,2610.6,2610.3,2.90160837]
[1748948440094,3.83083052,2610.4,2610.3,2.90160837]
[1748948440233,3.83074813,2610.5,2610.3,2.90160837]
[1748948440432,3.83068377,2610.5,2610.3,2.90160837]
[1748948440835,3.83083052,2610.4,2610.3,2.90160837]
[1748948441571,3.83073301,2610.5,2610.3,2.90160837]
[1748948441882,3.83073301,2610.5,2610.4,2.90160837]
[1748948443078,3.83045034,2610.7,2610.4,10.90160837]
[1748948443252,7.70554036,2610.6,2610.4,8.0]
[1748948443454,7.70554036,2610.6,2610.5,2.90160837]
[1748948446379,3.83068377,2610.5,2610.4,8.0]
[1748948446539,4.81618377,2610.5,2610.4,8.0]
[1748948446738,0.9855,2610.1,2609.1,0.02]
[1748948446980,3.83156442,2609.9,2609.1,2.92160837]
[1748948447189,3.83226018,2609.5,2609.1,2.92160837]
[1748948447357,3.83236318,2609.4,2609.2,8.0]
[1748948447767,3.83222598,2609.5,2609.2,8.0]
[1748948448355,3.83222598,2609.5,2609.4,8.0]
[1748948448558,7.71306752,2609.6,2609.4,8.0]
[1748948449219,3.83166361,2609.9,2609.5,2.90160837]
[1748948449516,3.882,2610.1,2609.9,8.0]
[1748948449719,0.9258,2610.5,2610.0,6.73300909]
[1748948449865,7.71283477,2610.4,2610.0,2.90160837]
[1748948450063,7.71283477,2610.4,2610.2,2.90160837]
[1748948450361,7.71283477,2610.4,2609.9,11.83148768]
[1748948450362,7.71283447,2610.4,2610.0,2.90160837]
[1748948450566,7.71293796,2610.4,2610.1,8.0]
[1748948450767,3.83094865,2610.4,2610.1,8.0]
[1748948450967,7.71294865,2610.4,2610.1,8.0]
[1748948451277,3.83097764,2610.3,2610.1,8.0]
[1748948451479,7.71289531,2610.4,2610.0,2.90160837]
[1748948451709,3.8310022,2610.3,2610.0,2.90160837]
[1748948451868,3.83086653,2610.4,2610.0,2.90160837]
[1748948452067,3.83086653,2610.4,2610.2,2.90160837]
[1748948452268,3.83097728,2610.3,2610.2,2.90160837]
[1748948452462,3.83069114,2610.5,2610.2,2.90160837]
[1748948452463,3.83090173,2610.4,2610.2,2.90160837]
[1748948453212,3.83075043,2610.5,2610.2,2.90160837]
[1748948453384,7.71254106,2610.6,2610.2,2.90160837]
[1748948453583,3.882,2610.5,2610.2,2.90160837]
[1748948454113,3.8305756,2610.6,2610.2,2.90160837]
[1748948454419,7.71168957,2610.5,2610.2,2.90160837]
[1748948454802,3.8309273,2610.4,2610.2,2.90160837]
[1748948455752,3.83097728,2610.3,2610.2,2.90160837]
[1748948455908,3.83138945,2610.1,2610.0,8.0]
[1748948460398,3.83165458,2609.9,2609.8,3.28440837]
[1748948460604,3.83148858,2610.0,2609.8,2.90160837]
[1748948460799,3.83157227,2609.9,2609.6,8.0]
[1748948461114,3.83214767,2609.6,2609.3,3.27792077]
[1748948461300,3.83222451,2609.5,2609.3,2.90160837]
[1748948462555,3.83229861,2609.4,2609.3,2.90160837]
[1748948462758,3.83229861,2609.4,2609.1,3.92060837]
[1748948462957,3.83247464,2609.3,2609.1,3.92060837]
[1748948463163,3.83237425,2609.4,2609.1,2.92160837]
[1748948463365,3.83259236,2609.2,2609.1,0.02]
[1748948463659,3.83259236,2609.2,2609.1,10.92160837]
[1748948464160,4.7922783,2609.6,2609.1,10.92160837]
[1748948464321,0.48037756,2610.6,2609.5,2.90160837]
[1748948464322,4.79188361,2609.9,2609.5,2.90160837]
[1748948464663,0.9602,2609.9,2609.5,2.90160837]
[1748948464818,3.886,2609.9,2609.5,2.90160837]
[1748948465005,3.887,2610.0,2609.8,2.90160837]
[1748948466005,3.83156442,2609.9,2609.6,2.90160837]
[1748948466232,3.83177074,2609.8,2609.6,2.90160837]
[1748948466410,3.83156442,2609.9,2609.6,2.90160837]
[1748948466411,3.83162215,2609.9,2609.6,2.90160837]
[1748948466611,3.83173911,2609.8,2609.6,2.90160837]
[1748948468060,3.83183364,2609.8,2609.6,2.90160837]
[1748948469567,3.83141762,2610.0,2609.6,2.90160837]
[1748948469767,0.47916176,2610.0,2609.6,2.90160837]
[1748948469972,3.83185806,2609.7,2609.6,2.90160837]
[1748948471257,3.83185806,2609.7,2609.1,3.85269092]
[1748948471258,3.83259236,2609.2,2609.1,0.02]
[1748948471644,4.7994906,2609.6,2609.1,2.92160837]
[1748948471848,3.888,2609.7,2609.5,2.90160837]
[1748948472156,7.71963397,2609.9,2609.5,2.90160837]
[1748948472360,3.83173352,2609.8,2609.5,2.90160837]
[1748948473165,7.72162412,2609.9,2609.7,2.90160837]
[1748948473365,0.9931,2610.1,2609.7,2.90160837]
[1748948473533,3.83133686,2610.1,2609.9,2.90160837]
[1748948473734,0.9766,2610.5,2610.0,8.0]
[1748948473941,3.8308657,2610.4,2610.3,2.90160837]
[1748948474536,3.83101065,2610.3,2610.1,2.90160837]
[1748948477283,3.83090482,2610.4,2610.1,2.90160837]
[1748948478994,4.80731956,2610.5,2610.1,2.90160837]
[1748948479195,7.71889717,2610.4,2610.1,2.90160837]
[1748948479369,3.888,2610.4,2610.1,2.90160837]
[1748948479892,3.83075855,2610.5,2610.3,2.90160837]
[1748948480053,3.888,2610.5,2610.3,2.90160837]
[1748948480255,3.83083052,2610.4,2610.3,2.90160837]
[1748948480889,7.71876445,2610.5,2610.3,2.90160837]
[1748948481060,3.83053704,2610.6,2610.3,2.90160837]
[1748948481061,3.83083052,2610.4,2610.3,2.90160837]
[1748948481255,3.83083052,2610.4,2610.1,2.90160837]
[1748948482295,3.83098463,2610.3,2610.1,2.90160837]
[1748948482696,3.830908,2610.4,2610.1,2.90160837]
[1748948482991,7.71869754,2610.5,2610.1,2.90160837]
[1748948483194,3.83091363,2610.4,2610.1,2.90160837]
[1748948483367,7.71870278,2610.5,2610.1,2.90160837]
[1748948483570,7.71870234,2610.5,2610.1,2.90160837]
[1748948483792,3.83094572,2610.4,2610.1,2.90160837]
[1748948484797,7.71871957,2610.5,2610.1,2.90160837]
[1748948485000,3.83084485,2610.4,2610.1,2.90160837]
[1748948486710,7.71869634,2610.5,2610.1,2.90160837]
[1748948487009,8.17084797,2610.5,2610.1,2.90160837]
[1748948487205,3.83089792,2610.4,2610.1,2.90160837]
[1748948487410,3.83083052,2610.4,2610.1,2.90160837]
[1748948487591,3.83083052,2610.4,2609.8,4.38168601]
[1748948487592,4.34015163,2610.5,2609.9,2.90160837]
[1748948487908,3.8312394,2610.2,2609.9,2.90160837]
[1748948488107,3.83128937,2610.1,2609.9,2.90160837]
[1748948488328,4.83858395,2610.3,2609.7,2.90160837]
[1748948488528,3.83152458,2610.0,2609.7,2.90160837]
[1748948488678,3.83149913,2610.0,2609.7,2.90160837]
[1748948489372,3.887,2610.1,2609.9,2.90160837]
[1748948489789,7.71907384,2610.3,2609.9,2.90160837]
[1748948489989,7.71907384,2610.3,2610.1,2.90160837]
[1748948490190,3.83107384,2610.3,2610.1,2.90160837]
[1748948490585,3.83074301,2610.5,2610.1,2.90160837]
[1748948490791,3.8305569,2610.6,2610.3,2.90160837]
[1748948491016,3.83083052,2610.4,2610.3,2.90160837]
[1748948492519,1.0076,2610.7,2610.3,2.90160837]
[1748948492698,1.0076,2610.7,2609.5,3.888]
[1748948492699,3.888,2610.7,2610.5,2.90160837]
[1748948492893,1.0179,2611.2,2610.5,2.90160837]
[1748948493094,3.83022604,2610.9,2610.7,2.90160837]
[1748948493723,3.83010271,2610.9,2610.5,2.90160837]
[1748948493933,3.83030569,2610.8,2610.5,3.28506695]
[1748948494129,3.83030569,2610.8,2610.5,2.90160837]
[1748948494825,3.83018061,2610.9,2610.5,2.90160837]
[1748948495009,3.83018061,2610.9,2610.7,2.90160837]
[1748948495685,7.7179708,2611.0,2610.7,2.90160837]
[1748948495686,3.8299793,2611.0,2610.7,2.90160837]
[1748948496086,7.91998524,2611.1,2610.7,2.90160837]
[1748948496386,7.91998524,2611.1,2610.6,3.83047507]
[1748948496387,7.71789524,2611.1,2610.9,2.90160837]
[1748948496588,3.82989524,2611.1,2610.9,2.90160837]
[1748948496789,4.84765053,2611.2,2610.9,2.90160837]
[1748948496982,0.9447,2611.5,2611.1,2.90160837]
[1748948497230,3.82957913,2611.3,2611.1,2.90160837]
[1748948497402,3.82943365,2611.4,2611.1,2.90160837]
[1748948497805,3.82954404,2611.3,2611.1,2.90160837]
[1748948498743,3.82965686,2611.2,2611.1,2.90160837]
[1748948499645,3.82963834,2611.3,2611.1,2.90160837]
[1748948500543,3.82965686,2611.2,2611.1,2.90160837]
[1748948501429,3.82995021,2611.0,2610.9,2.90160837]
[1748948501638,3.82988958,2611.1,2610.9,2.90160837]
[1748948501801,3.82995021,2611.0,2610.9,2.90160837]
[1748948502001,3.8301597,2610.9,2610.7,2.90160837]
[1748948502243,3.8301597,2610.9,2610.8,8.0]
[1748948502844,4.80188026,2611.1,2610.8,8.0]
[1748948503047,3.82980353,2611.1,2610.9,2.90160837]
[1748948503242,3.82972912,2611.2,2610.9,2.90160837]
[1748948503451,3.82972912,2611.2,2610.6,3.83047731]
[1748948503452,3.8298887,2611.1,2610.7,10.90160837]
[1748948504111,3.8298887,2611.1,2610.5,4.20841507]
[1748948504112,3.83047062,2610.7,2610.5,3.27941947]
[1748948504513,3.83031852,2610.8,2610.5,3.27941947]
[1748948505053,3.83041678,2610.7,2610.5,3.27941947]
[1748948505815,3.83033122,2610.8,2610.5,3.27941947]
[1748948506349,3.83032326,2610.8,2610.5,3.27941947]
[1748948506664,3.83031092,2610.8,2610.5,3.27941947]
[1748948508429,3.83031092,2610.8,2610.5,2.90160837]
[1748948509566,3.83045147,2610.7,2610.5,2.90160837]
[1748948509864,5.08135164,2610.8,2610.5,2.90160837]
[1748948510063,3.884,2610.9,2610.7,2.90160837]
[1748948511875,7.7141085,2610.9,2610.7,2.90160837]
[1748948512366,0.9403,2611.2,2610.7,2.90160837]
[1748948512552,3.884,2611.0,2610.9,2.90160837]
[1748948512958,3.82990686,2611.1,2610.9,2.90160837]
[1748948513159,3.82995021,2611.0,2610.9,2.90160837]
[1748948513365,3.82995021,2611.0,2610.7,2.90160837]
[1748948514340,3.82990686,2611.1,2610.7,2.90160837]
[1748948514341,3.82987806,2611.1,2610.7,2.90160837]
[1748948514541,3.82987806,2611.1,2610.8,8.0]
[1748948514741,3.82997846,2611.0,2610.8,8.0]
[1748948515243,3.8298911,2611.1,2610.8,8.0]
[1748948515486,3.8298911,2611.1,2610.9,2.90160837]
[1748948515487,3.82989721,2611.1,2610.9,2.90160837]
[1748948515683,3.82972115,2611.2,2610.9,2.90160837]
[1748948515883,3.882,2611.2,2611.1,10.90160837]
[1748948517370,0.9421,2611.4,2611.1,10.90160837]
[1748948517574,7.71152166,2611.3,2611.1,10.90160837]
[1748948517782,3.882,2611.4,2611.1,10.90160837]
[1748948517956,3.82951549,2611.3,2611.1,10.90160837]
[1748948519072,7.71136606,2611.4,2611.1,10.90160837]
[1748948519073,3.882,2611.4,2611.1,10.90160837]
[1748948519278,3.82953523,2611.3,2611.1,10.90160837]
[1748948520668,3.8295102,2611.3,2611.1,10.90160837]
[1748948521192,3.8295631,2611.3,2611.1,10.90160837]
[1748948523603,7.70942562,2611.4,2611.1,10.90160837]
[1748948523902,3.82952154,2611.3,2611.1,10.90160837]
[1748948524398,3.82944589,2611.4,2611.2,8.0]
[1748948524608,7.70844589,2611.4,2611.2,8.0]
[1748948525457,3.8295102,2611.3,2611.2,8.0]
[1748948526292,7.70840387,2611.4,2611.2,8.0]
[1748948526501,1.0184,2611.9,2611.3,2.90160837]
[1748948526670,3.82910934,2611.6,2611.3,2.90160837]
[1748948526878,3.878,2611.5,2611.3,2.90160837]
[1748948527257,3.82878131,2611.8,2611.4,11.82928687]
[1748948527457,3.84870695,2611.9,2611.6,8.0]
[1748948527687,3.878,2611.8,2611.7,10.90160837]
[1748948528015,0.02,2611.9,2611.7,10.90160837]
[1748948529111,0.02,2611.9,2611.8,11.82877708]
[1748948530291,0.02,2611.9,2611.8,12.37877708]
[1748948533600,3.82755619,2612.7,2611.9,8.55]
[1748948533934,3.884,2612.7,2612.4,2.90160837]
[1748948534245,0.02,2612.9,2612.6,2.90160837]
[1748948534631,7.73326006,2612.9,2612.7,8.0]
[1748948534927,3.906,2612.9,2612.7,8.0]
[1748948535097,7.73319429,2612.9,2612.7,8.0]
[1748948535298,3.82731169,2612.8,2612.7,8.0]
[1748948535724,3.8472409,2612.9,2612.7,8.0]
[1748948535920,3.84725132,2612.9,2612.7,8.0]
[1748948536107,3.82731169,2612.8,2612.7,8.0]
[1748948536304,3.84724919,2612.9,2612.7,8.0]
[1748948536535,3.82731169,2612.8,2612.7,8.0]
[1748948538803,3.84721994,2612.9,2612.7,8.0]
[1748948539837,0.02,2612.9,2612.7,8.0]
[1748948540030,3.82731169,2612.8,2612.7,8.0]
[1748948541040,3.84730199,2612.9,2612.7,8.0]
[1748948541335,3.82731169,2612.8,2612.7,8.0]
[1748948543573,3.84725149,2612.9,2612.7,8.0]
[1748948543735,0.02,2612.9,2612.7,8.0]
[1748948544289,3.84718634,2612.9,2612.7,8.0]
[1748948545249,3.84726268,2612.9,2612.7,8.0]
[1748948545773,3.82731169,2612.8,2612.7,8.0]
[1748948545949,3.84729912,2612.9,2612.7,8.0]
[1748948546484,3.82731169,2612.8,2612.7,8.0]
[1748948549579,3.84726282,2612.9,2612.7,8.0]
[1748948550382,3.82731169,2612.8,2612.7,8.0]
[1748948550883,3.82731169,2612.8,2612.7,0.48972896]
[1748948551083,3.82731169,2612.8,2612.6,2.90160837]
[1748948551281,3.847254,2612.9,2612.6,2.90160837]
[1748948551486,3.82732578,2612.8,2612.6,2.90160837]
[1748948555675,3.82760468,2612.6,2612.5,0.3854889]
[1748948556060,3.82760468,2612.6,2612.3,3.45160837]
[1748948556349,3.82745818,2612.7,2612.3,3.45160837]
[1748948556766,3.82740122,2612.8,2612.3,7.27965125]
[1748948556981,3.84724625,2612.9,2612.5,2.90160837]
[1748948557362,3.82732456,2612.8,2612.5,2.90160837]
[1748948557978,3.8274799,2612.7,2612.5,2.90160837]
[1748948558165,3.82739963,2612.8,2612.5,2.90160837]
[1748948558604,3.82731169,2612.8,2612.5,2.90160837]
[1748948558906,3.82752581,2612.7,2612.5,2.90160837]
[1748948559106,4.59494193,2612.7,2612.3,3.27986853]
[1748948559409,3.82760468,2612.6,2612.4,8.0]
[1748948559768,4.59501847,2612.7,2612.4,8.0]
[1748948560382,3.82760836,2612.6,2612.4,8.0]
[1748948560693,1.0414,2612.4,2612.0,6.73008405]
[1748948560906,1.0414,2612.4,2612.1,8.0]
[1748948561305,1.0414,2612.4,2612.1,11.82823889]
[1748948561475,3.82775579,2612.5,2612.1,8.0]
[1748948561680,3.82775579,2612.5,2612.1,11.82832663]
[1748948562322,3.82775579,2612.5,2612.1,8.0]
[1748948562622,4.80209242,2612.6,2612.1,11.82830776]
[1748948562821,6.12909632,2612.6,2612.1,11.82830776]
[1748948563019,3.82779892,2612.5,2612.1,8.0]
[1748948563323,3.82779892,2612.5,2612.1,11.82832107]
[1748948563832,3.82779892,2612.5,2612.1,12.21433642]
[1748948563981,3.82779892,2612.5,2612.1,8.38601535]
[1748948564919,3.82800831,2612.4,2612.1,8.38601535]
[1748948565236,3.873,2612.4,2611.9,11.82859208]
[1748948565387,7.70101404,2612.4,2611.9,11.82859208]
[1748948565835,3.873,2612.4,2612.1,8.0]
[1748948566039,7.70090487,2612.4,2612.1,8.0]
[1748948566782,3.873,2612.4,2612.1,8.0]
[1748948566986,3.82817621,2612.3,2612.1,8.0]
[1748948567211,3.82817621,2612.3,2611.9,0.68064689]
[1748948567422,3.82817621,2612.3,2611.9,8.0]
[1748948567799,3.82817621,2612.3,2611.5,0.999]
[1748948567800,3.82880046,2611.8,2611.4,7.52672407]
[1748948568158,3.82880046,2611.8,2611.2,0.999]
[1748948568159,3.876,2611.7,2611.2,0.999]
[1748948568503,3.876,2611.7,2611.4,8.0]
[1748948568700,3.876,2611.7,2611.4,11.82929942]
[1748948569331,3.876,2611.7,2611.4,8.0]
[1748948570386,3.876,2611.7,2611.4,11.82933884]
[1748948571326,3.876,2611.7,2611.4,8.0]
[1748948571826,4.7411094,2611.9,2611.4,11.82932941]
[1748948572053,3.877,2611.8,2611.4,11.82932941]
[1748948573212,3.878,2612.0,2611.7,6.73045899]
[1748948573412,0.986,2612.3,2611.9,2.90160837]
[1748948573612,3.878,2612.2,2611.9,2.90160837]
[1748948574009,0.986,2612.3,2611.9,2.90160837]
[1748948574221,0.986,2612.3,2611.5,3.8291929]
[1748948574222,3.878,2612.4,2612.1,6.72986416]
[1748948574464,3.82767197,2612.6,2612.1,6.72988039]
[1748948574621,0.86411872,2612.6,2612.2,3.82812595]
[1748948574829,3.879,2612.5,2612.2,3.82812595]
[1748948575040,3.879,2612.5,2612.1,6.72986008]
[1748948575242,7.70676298,2612.5,2612.1,2.90160837]
[1748948575444,3.82806352,2612.3,2611.9,2.90160837]
[1748948576176,1.33843956,2612.5,2612.2,2.90160837]
[1748948576177,3.879,2612.5,2612.2,2.90160837]
[1748948576459,3.82802152,2612.4,2612.0,14.73009022]
[1748948576751,3.82802152,2612.4,2612.1,8.0]
[1748948577143,8.71377784,2612.5,2612.1,8.0]
[1748948577450,3.82796361,2612.4,2612.1,8.0]
[1748948580066,9.58519987,2612.5,2612.0,6.73007779]
[1748948580272,8.71382209,2612.5,2612.1,8.0]
[1748948580743,3.82810333,2612.3,2612.0,2.90160837]
[1748948581691,8.71382628,2612.5,2612.0,6.73005661]
[1748948582186,8.71382628,2612.5,2612.0,14.73000771]
[1748948582387,8.71382628,2612.5,2612.1,8.0]
[1748948582897,3.879,2612.5,2612.2,6.72969916]
[1748948583855,3.8276325,2612.6,2612.2,6.72969916]
[1748948584048,7.7046325,2612.6,2612.2,6.72969916]
[1748948584499,7.70463086,2612.6,2612.2,2.90160837]
[1748948584697,3.82775326,2612.5,2612.2,2.90160837]
[1748948584896,7.70462142,2612.6,2612.2,2.90160837]
[1748948585200,7.7046878,2612.6,2612.2,6.72976777]
[1748948585396,7.7046878,2612.6,2612.2,2.90160837]
[1748948585897,7.7036878,2612.6,2612.2,6.72975854]
[1748948586078,7.7036878,2612.6,2612.2,2.90160837]
[1748948586580,1.007,2612.7,2612.4,2.90160837]
[1748948586780,3.82738042,2612.8,2612.4,2.90160837]
[1748948587013,3.875,2612.8,2612.4,2.90160837]
[1748948587218,7.7024287,2612.8,2612.4,2.90160837]
[1748948587420,3.82747464,2612.7,2612.4,2.90160837]
[1748948588531,3.875,2612.8,2612.3,8.0]
[1748948588532,3.82775119,2612.5,2612.3,8.0]
[1748948589040,3.82775119,2612.5,2611.8,8.0]
[1748948589041,3.82845652,2612.1,2611.8,8.0]
[1748948589395,3.82826589,2612.2,2611.8,11.82876642]
[1748948589602,3.82812103,2612.3,2612.0,8.0]
[1748948589802,3.82797397,2612.4,2612.0,8.0]
[1748948590121,5.63823655,2612.5,2612.1,3.82833519]
[1748948590320,0.9977,2612.7,2612.3,6.72964283]
[1748948590528,4.82523283,2612.7,2612.3,2.90160837]
[1748948590739,8.70223283,2612.7,2612.3,2.90160837]
[1748948591207,0.02,2612.9,2612.5,2.90160837]
[1748948591208,4.84498171,2612.9,2612.5,2.90160837]
[1748948591400,3.877,2612.7,2612.5,2.90160837]
[1748948591823,4.84493357,2612.9,2612.5,2.90160837]
[1748948592021,8.72193357,2612.9,2612.5,2.90160837]
[1748948592212,3.8273215,2612.8,2612.5,2.90160837]
[1748948593038,3.8273215,2612.8,2612.4,2.90160837]
[1748948593237,3.8273215,2612.8,2612.4,6.72950547]
[1748948594537,8.7218772,2612.9,2612.4,6.72950547]
[1748948594840,3.896,2612.9,2612.4,6.72950547]
[1748948595010,3.896,2612.9,2612.4,2.90160837]
[1748948595011,3.84716893,2612.9,2612.4,2.90160837]
[1748948595216,3.84716893,2612.9,2612.4,14.7294838]
[1748948595413,0.02,2612.9,2612.8,6.72892006]
[1748948595615,0.02,2612.9,2612.8,2.90160837]
[1748948595836,0.02,2612.9,2612.7,0.3837785]
[1748948596151,0.02,2612.9,2612.6,6.72914826]
[1748948596519,0.02,2612.9,2612.7,8.0]
[1748948598403,0.02,2612.9,2612.8,6.72892006]
[1748948600306,0.02,2613.9,2613.8,0.55]
[1748948600605,0.02,2613.9,2613.6,2.90160837]
[1748948601044,0.02,2613.9,2613.8,14.72745579]
[1748948601203,0.02,2613.9,2613.8,15.27745579]
[1748948608970,0.02,2613.9,2613.8,20.98167679]
[1748948609175,0.02,2613.9,2613.8,20.70003679]
[1748948609477,0.02,2613.9,2613.8,17.57703679]
[1748948612438,0.9012,2614.8,2614.4,3.82484742]
[1748948612776,0.9012,2614.8,2614.7,2.90160837]
[1748948613385,4.72558427,2614.8,2614.7,2.90160837]
[1748948613800,3.82455652,2614.7,2614.5,2.90160837]
[1748948614972,3.82453053,2614.7,2614.4,8.37646608]
[1748948615274,3.82548282,2614.1,2613.8,2.90160837]
[1748948615579,3.82548282,2614.1,2613.9,8.0]
[1748948615776,3.8255547,2614.0,2613.9,8.0]
[1748948616072,3.82532652,2614.2,2613.8,2.90160837]
[1748948616274,4.30597957,2614.2,2613.8,2.90160837]
[1748948616455,3.82556465,2614.0,2613.8,2.90160837]
[1748948616867,3.82561893,2614.0,2613.8,3.28986887]
[1748948617069,3.82548882,2614.1,2613.8,3.28986887]
[1748948617681,3.825555,2614.0,2613.8,3.28986887]
[1748948618423,3.825555,2614.0,2613.4,2.90160837]
[1748948618424,0.81314809,2614.0,2613.4,2.90160837]
[1748948618626,3.82578145,2613.9,2613.6,2.90160837]
[1748948618919,3.82590106,2613.8,2613.6,2.90160837]
[1748948620495,3.82590232,2613.8,2613.6,2.90160837]
[1748948620692,3.8252806,2614.2,2613.4,2.90160837]
[1748948620693,3.82620362,2613.6,2613.4,2.90160837]
[1748948620895,3.82628658,2613.5,2613.4,2.90160837]
[1748948621326,4.20878143,2613.6,2613.4,2.90160837]
[1748948621696,3.82616107,2613.6,2613.4,2.90160837]
[1748948622136,3.82616107,2613.6,2613.5,2.90160837]
[1748948622633,4.7508637,2613.7,2613.5,2.90160837]
[1748948622839,0.9248,2613.7,2613.5,2.90160837]
[1748948622992,4.75080574,2613.7,2613.5,2.90160837]
[1748948624411,0.9248,2613.7,2613.5,2.90160837]
[1748948624598,3.82588714,2613.8,2613.5,2.90160837]
[1748948624802,3.82588714,2613.8,2613.7,2.90160837]
[1748948625002,4.69032674,2613.8,2613.7,2.90160837]
[1748948626135,0.8644396,2613.8,2613.7,2.90160837]
[1748948626305,4.69028702,2613.8,2613.7,2.90160837]
[1748948628849,3.82626505,2613.6,2613.5,2.90160837]
[1748948630505,3.82649944,2613.4,2613.3,2.90160837]
[1748948631320,3.8259938,2613.7,2613.3,2.90160837]
[1748948631524,3.82621223,2613.6,2613.3,2.90160837]
[1748948631741,3.82621223,2613.6,2613.5,2.90160837]
[1748948634743,4.39439944,2613.7,2613.5,2.90160837]
[1748948634935,0.56833334,2613.7,2613.5,2.90160837]
[1748948635137,4.39434191,2613.7,2613.5,2.90160837]
[1748948637916,0.56833334,2613.7,2613.5,2.90160837]
[1748948638115,3.82591932,2613.8,2613.5,2.90160837]
[1748948639170,4.81861934,2613.9,2613.3,2.90160837]
[1748948639328,0.9929,2613.9,2613.3,2.90160837]
[1748948639516,3.82619658,2613.6,2613.3,2.90160837]
[1748948640259,3.82633375,2613.5,2613.3,2.90160837]
[1748948640746,3.8260622,2613.7,2613.3,2.90160837]
[1748948640953,3.8260622,2613.7,2613.5,2.90160837]
[1748948641457,3.82614018,2613.6,2613.5,2.90160837]
[1748948642171,3.82596659,2613.8,2613.5,2.90160837]
[1748948642865,3.82607669,2613.7,2613.5,2.90160837]
[1748948643443,3.82591225,2613.8,2613.5,2.90160837]
[1748948643945,3.82600423,2613.7,2613.5,2.90160837]
[1748948645379,0.74293994,2613.7,2613.3,2.90160837]
[1748948645575,3.82622641,2613.6,2613.3,2.90160837]
[1748948646156,3.82637041,2613.5,2613.3,2.90160837]
[1748948651092,4.56899551,2613.7,2613.3,2.90160837]
[1748948651093,3.82622369,2613.6,2613.3,2.90160837]
[1748948651598,3.82591071,2613.8,2613.5,2.90160837]
[1748948651888,3.82599599,2613.7,2613.5,2.90160837]
[1748948652093,3.82593724,2613.8,2613.5,2.90160837]
[1748948653250,4.81868082,2613.9,2613.5,2.90160837]
[1748948653691,3.8258529,2613.8,2613.5,2.90160837]
[1748948655202,0.48187529,2613.7,2613.1,0.55]
[1748948655373,3.82636808,2613.5,2613.1,0.55]
[1748948655710,3.82636808,2613.5,2613.2,2.90160837]
[1748948655857,3.82644665,2613.4,2613.2,2.90160837]
[1748948656059,0.9714,2613.5,2612.9,0.55]
[1748948656370,0.9714,2613.5,2612.9,8.38991763]
[1748948656566,3.82687412,2613.1,2612.8,3.5884813]
[1748948657011,3.82679808,2613.2,2612.8,3.5884813]
[1748948657332,3.82664322,2613.3,2612.8,3.5884813]
[1748948657514,4.79776018,2613.5,2613.2,2.90160837]
[1748948657809,5.27751259,2613.5,2613.2,2.90160837]
[1748948658205,5.2775156,2613.5,2613.2,2.90160837]
[1748948658408,1.45115241,2613.5,2613.2,2.90160837]
[1748948658715,3.82620934,2613.6,2613.4,2.90160837]
[1748948659292,3.82627557,2613.6,2613.4,2.90160837]
[1748948659493,3.82628658,2613.5,2613.4,2.90160837]
[1748948659694,0.9619,2613.8,2613.4,2.90160837]
[1748948659900,3.82612524,2613.7,2613.4,2.90160837]
[1748948661868,3.82615122,2613.6,2613.4,2.90160837]
[1748948662188,3.82605321,2613.7,2613.4,2.90160837]
[1748948662414,3.82589552,2613.8,2613.4,2.90160837]
[1748948662789,3.82594091,2613.8,2613.4,2.90160837]
[1748948663948,3.82606846,2613.7,2613.4,2.90160837]
[1748948664636,4.77817842,2613.5,2612.8,3.82731169]
[1748948664937,4.7687024,2613.5,2613.1,2.90160837]
[1748948665517,4.7687024,2613.5,2613.1,6.72847861]
[1748948665708,4.7687024,2613.5,2613.1,2.90160837]
[1748948666121,4.7687024,2613.5,2612.9,2.90160837]
[1748948666122,1.59030156,2613.5,2612.9,2.90160837]
[1748948666308,3.82678898,2613.2,2612.9,2.90160837]
[1748948666517,3.82643299,2613.4,2612.9,2.90160837]
[1748948666694,3.82668372,2613.3,2612.9,2.90160837]
[1748948667032,3.82673066,2613.2,2612.9,2.90160837]
[1748948667193,1.59030156,2613.5,2612.9,2.90160837]
[1748948667394,3.82688557,2613.1,2612.9,2.90160837]